[Event "*** SCC Grand Prix: Titled Tuesday Blitz"]
[Site "Chess.com"]
[Date "2020.08.04"]
[Round "8"]
[White "ZEN-22"]
[Black "keepitcool9499"]
[Result "0-1"]
[WhiteElo "2500"]
[BlackElo "2647"]
[TimeControl "180+1"]
[EndTime "15:17:11 PDT"]
[Termination "keepitcool9499 won on time"]

1. g3 {[%clk 0:03:00.9]} 1... e6 {[%clk 0:03:00.9]} 2. Bg2 {[%clk 0:03:00.4]}
2... d5 {[%clk 0:03:01.7]} 3. Nf3 {[%clk 0:02:59.2]} 3... Nf6 {[%clk 0:03:02.6]}
4. O-O {[%clk 0:02:59.3]} 4... Be7 {[%clk 0:02:58.6]} 5. c4 {[%clk 0:02:59.6]}
5... O-O {[%clk 0:02:47.5]} 6. cxd5 {[%clk 0:02:59.3]} 6... exd5 {[%clk
0:02:48.4]} 7. d3 {[%clk 0:02:58.2]} 7... c5 {[%clk 0:02:45.7]} 8. Nc3 {[%clk
0:02:58.6]} 8... d4 {[%clk 0:02:40.1]} 9. Na4 {[%clk 0:02:48]} 9... Nc6 {[%clk
0:02:30.8]} 10. Bg5 {[%clk 0:02:48]} 10... Nd5 {[%clk 0:02:27.2]} 11. Bxe7
{[%clk 0:02:40.1]} 11... Qxe7 {[%clk 0:02:28.1]} 12. Rc1 {[%clk 0:02:39.5]}
12... b6 {[%clk 0:02:24.1]} 13. a3 {[%clk 0:02:30.8]} 13... Bb7 {[%clk
0:02:20.8]} 14. b4 {[%clk 0:02:29.9]} 14... cxb4 {[%clk 0:02:18.2]} 15. axb4
{[%clk 0:02:23.7]} 15... Ndxb4 {[%clk 0:02:15.7]} 16. Re1 {[%clk 0:02:20.4]}
16... Rac8 {[%clk 0:02:08]} 17. Qd2 {[%clk 0:02:18.7]} 17... Rfd8 {[%clk
0:02:05.1]} 18. Nh4 {[%clk 0:02:10.3]} 18... g6 {[%clk 0:02:01.3]} 19. Nb2
{[%clk 0:02:08.4]} 19... Na5 {[%clk 0:01:56.2]} 20. Bxb7 {[%clk 0:02:04.2]}
20... Nxb7 {[%clk 0:01:46.9]} 21. Nf3 {[%clk 0:01:54.1]} 21... Na5 {[%clk
0:01:40.4]} 22. Rxc8 {[%clk 0:01:50]} 22... Rxc8 {[%clk 0:01:41.3]} 23. Nxd4
{[%clk 0:01:49.7]} 23... Qc5 {[%clk 0:01:34.8]} 24. e3 {[%clk 0:01:12.2]} 24...
Qc3 {[%clk 0:01:30.8]} 25. Qe2 {[%clk 0:01:12]} 25... Nb3 {[%clk 0:01:25.2]} 26.
Nxb3 {[%clk 0:01:08.1]} 26... Qxb3 {[%clk 0:01:26.1]} 27. Nc4 {[%clk 0:00:46.3]}
27... Qxd3 {[%clk 0:01:20.7]} 28. Ne5 {[%clk 0:00:22.9]} 28... Qxe2 {[%clk
0:01:16.8]} 29. Rxe2 {[%clk 0:00:23.8]} 29... a5 {[%clk 0:01:12.6]} 30. Rd2
{[%clk 0:00:17.6]} 30... a4 {[%clk 0:01:09.9]} 31. Nd7 {[%clk 0:00:15.2]} 31...
Rc1+ {[%clk 0:01:06.8]} 32. Kg2 {[%clk 0:00:14.7]} 32... a3 {[%clk 0:01:04.3]}
33. Nf6+ {[%clk 0:00:08.4]} 33... Kg7 {[%clk 0:01:01.6]} 34. Ne8+ {[%clk
0:00:09.3]} 34... Kf8 {[%clk 0:00:57.6]} 35. Rd8 {[%clk 0:00:10.2]} 35... a2
{[%clk 0:00:52.6]} 36. e4 {[%clk 0:00:03.4]} 36... a1=Q {[%clk 0:00:44.2]} 37.
e5 {[%clk 0:00:01.5]} 37... Rg1+ {[%clk 0:00:38.1]} 0-1

[Event "*** SCC Grand Prix: Titled Tuesday Blitz"]
[Site "Chess.com"]
[Date "2020.08.04"]
[Round "8"]
[White "BilodeauA"]
[Black "LyonBeast"]
[Result "0-1"]
[WhiteElo "2883"]
[BlackElo "3037"]
[TimeControl "180+1"]
[EndTime "15:17:13 PDT"]
[Termination "LyonBeast won by resignation"]

1. d4 {[%clk 0:03:00.9]} 1... Nf6 {[%clk 0:02:55.4]} 2. Nc3 {[%clk 0:03:01.1]}
2... d5 {[%clk 0:02:55]} 3. Bf4 {[%clk 0:03:01.4]} 3... Bf5 {[%clk 0:02:52.1]}
4. e3 {[%clk 0:03:00.6]} 4... e6 {[%clk 0:02:52]} 5. f3 {[%clk 0:03:01.2]} 5...
Bb4 {[%clk 0:02:47.8]} 6. g4 {[%clk 0:02:58]} 6... Bg6 {[%clk 0:02:48]} 7. h4
{[%clk 0:02:58.4]} 7... h5 {[%clk 0:02:47.8]} 8. g5 {[%clk 0:02:58.7]} 8... Ng8
{[%clk 0:02:45.3]} 9. Bd3 {[%clk 0:02:59.3]} 9... Ne7 {[%clk 0:02:45.5]} 10. e4
{[%clk 0:02:46.2]} 10... c5 {[%clk 0:02:40.5]} 11. dxc5 {[%clk 0:02:21.8]} 11...
Bxc5 {[%clk 0:02:16]} 12. exd5 {[%clk 0:02:02.4]} 12... exd5 {[%clk 0:02:16.9]}
13. Bxg6 {[%clk 0:01:41.4]} 13... fxg6 {[%clk 0:02:16.1]} 14. Nge2 {[%clk
0:01:33.8]} 14... O-O {[%clk 0:02:15.1]} 15. Qd3 {[%clk 0:01:33.7]} 15... Nbc6
{[%clk 0:02:09.8]} 16. a3 {[%clk 0:01:33.9]} 16... Qd7 {[%clk 0:01:52.7]} 17.
O-O-O {[%clk 0:01:31.5]} 17... Rad8 {[%clk 0:01:52.5]} 18. Kb1 {[%clk
0:01:30.1]} 18... a6 {[%clk 0:01:50.9]} 19. Bh2 {[%clk 0:01:17.6]} 19... Qf5
{[%clk 0:01:29.1]} 20. Nf4 {[%clk 0:01:05.6]} 20... Qf7 {[%clk 0:01:01.5]} 21.
Qe2 {[%clk 0:01:00.6]} 21... Nd4 {[%clk 0:00:59.3]} 22. Qd3 {[%clk 0:00:42.7]}
22... Ne6 {[%clk 0:00:57.9]} 23. Nxe6 {[%clk 0:00:41.3]} 23... Qxe6 {[%clk
0:00:58.8]} 24. Rhe1 {[%clk 0:00:41.7]} 24... Qf7 {[%clk 0:00:59]} 25. f4 {[%clk
0:00:28.3]} 25... Rd7 {[%clk 0:00:49.6]} 26. Re2 {[%clk 0:00:27.8]} 26... Rfd8
{[%clk 0:00:49.5]} 27. Bg1 {[%clk 0:00:28.4]} 27... Bxg1 {[%clk 0:00:48.6]} 28.
Rxg1 {[%clk 0:00:28.7]} 28... Nf5 {[%clk 0:00:44.7]} 29. Rh1 {[%clk 0:00:21.3]}
29... Kh7 {[%clk 0:00:44.3]} 30. Re5 {[%clk 0:00:21.1]} 30... d4 {[%clk
0:00:40]} 31. Ne4 {[%clk 0:00:19.8]} 31... Rd5 {[%clk 0:00:39.8]} 32. Qb3 {[%clk
0:00:16]} 32... Qd7 {[%clk 0:00:31.8]} 33. Nc5 {[%clk 0:00:10.4]} 33... Qc6
{[%clk 0:00:31.6]} 34. Rxd5 {[%clk 0:00:05.8]} 34... Rxd5 {[%clk 0:00:32.5]} 35.
Nd3 {[%clk 0:00:05.7]} 35... Rb5 {[%clk 0:00:32.1]} 0-1

[Event "*** SCC Grand Prix: Titled Tuesday Blitz"]
[Site "Chess.com"]
[Date "2020.08.04"]
[Round "8"]
[White "tptagain"]
[Black "crescentmoon2411"]
[Result "1-0"]
[WhiteElo "2946"]
[BlackElo "2773"]
[TimeControl "180+1"]
[EndTime "15:17:18 PDT"]
[Termination "tptagain won by resignation"]

1. Nf3 {[%clk 0:03:00.9]} 1... Nf6 {[%clk 0:02:59.5]} 2. d4 {[%clk 0:03:00.9]}
2... d5 {[%clk 0:02:58.9]} 3. e3 {[%clk 0:02:58]} 3... c5 {[%clk 0:02:55]} 4.
dxc5 {[%clk 0:02:50.2]} 4... Nc6 {[%clk 0:02:53.4]} 5. a3 {[%clk 0:02:49.1]}
5... a5 {[%clk 0:02:45.7]} 6. Nc3 {[%clk 0:02:48.4]} 6... g6 {[%clk 0:02:42.3]}
7. Bb5 {[%clk 0:02:45]} 7... Bg7 {[%clk 0:02:39.4]} 8. O-O {[%clk 0:02:44.5]}
8... O-O {[%clk 0:02:39.2]} 9. Bxc6 {[%clk 0:02:38.3]} 9... bxc6 {[%clk
0:02:39.1]} 10. Nd4 {[%clk 0:02:33.9]} 10... Qc7 {[%clk 0:02:34.9]} 11. Na4
{[%clk 0:02:17]} 11... e5 {[%clk 0:02:26.6]} 12. Nb3 {[%clk 0:02:14.6]} 12...
Bf5 {[%clk 0:02:01.6]} 13. Bd2 {[%clk 0:02:11.4]} 13... Nd7 {[%clk 0:01:40.5]}
14. Rc1 {[%clk 0:02:03.6]} 14... Rfb8 {[%clk 0:01:34.3]} 15. Bc3 {[%clk
0:01:51.4]} 15... Rb5 {[%clk 0:01:21]} 16. Qd2 {[%clk 0:01:50]} 16... h5 {[%clk
0:01:12.4]} 17. h3 {[%clk 0:01:48]} 17... Be6 {[%clk 0:00:50.6]} 18. f4 {[%clk
0:01:38.9]} 18... f6 {[%clk 0:00:46.4]} 19. Qd3 {[%clk 0:01:14.6]} 19... Bf5
{[%clk 0:00:41.4]} 20. Qe2 {[%clk 0:01:14.7]} 20... Re8 {[%clk 0:00:32.2]} 21.
fxe5 {[%clk 0:01:12.8]} 21... fxe5 {[%clk 0:00:32.1]} 22. Rxf5 {[%clk
0:01:09.8]} 22... gxf5 {[%clk 0:00:32.2]} 23. Qxh5 {[%clk 0:01:10.2]} 23... Rf8
{[%clk 0:00:28.5]} 24. Rf1 {[%clk 0:00:48.1]} 24... f4 {[%clk 0:00:26.2]} 25.
exf4 {[%clk 0:00:48.3]} 25... d4 {[%clk 0:00:26.3]} 26. Be1 {[%clk 0:00:43.6]}
26... d3 {[%clk 0:00:25.2]} 27. Nc3 {[%clk 0:00:38.5]} 27... Rbb8 {[%clk
0:00:24.3]} 28. Qg6 {[%clk 0:00:34.9]} 28... dxc2 {[%clk 0:00:20.8]} 29. Qxc2
{[%clk 0:00:35.8]} 29... exf4 {[%clk 0:00:19.4]} 30. Ne4 {[%clk 0:00:34.1]}
30... Ne5 {[%clk 0:00:18.9]} 31. Ng5 {[%clk 0:00:31.9]} 31... Rf6 {[%clk
0:00:14.9]} 32. Nd4 {[%clk 0:00:21]} 32... Qd7 {[%clk 0:00:11.6]} 33. Bc3 {[%clk
0:00:15.5]} 33... Qf5 {[%clk 0:00:11.1]} 34. Nxf5 {[%clk 0:00:14.8]} 34... Rxf5
{[%clk 0:00:12]} 35. Qxf5 {[%clk 0:00:15.3]} 1-0

[Event "*** SCC Grand Prix: Titled Tuesday Blitz"]
[Site "Chess.com"]
[Date "2020.08.04"]
[Round "8"]
[White "XiaoKangZhong"]
[Black "realmadridtv"]
[Result "1-0"]
[WhiteElo "2421"]
[BlackElo "2470"]
[TimeControl "180+1"]
[EndTime "15:17:20 PDT"]
[Termination "XiaoKangZhong won on time"]

1. e4 {[%clk 0:03:00.9]} 1... e5 {[%clk 0:03:00]} 2. Nf3 {[%clk 0:03:00.9]} 2...
Nc6 {[%clk 0:03:00.4]} 3. Bc4 {[%clk 0:03:01.5]} 3... Bc5 {[%clk 0:03:00]} 4. c3
{[%clk 0:03:01.7]} 4... Nf6 {[%clk 0:03:00.1]} 5. d3 {[%clk 0:03:02.2]} 5... d6
{[%clk 0:02:58.8]} 6. Nbd2 {[%clk 0:03:02]} 6... a6 {[%clk 0:02:59.1]} 7. Bb3
{[%clk 0:03:01.9]} 7... Ba7 {[%clk 0:02:59.2]} 8. O-O {[%clk 0:03:01]} 8... h6
{[%clk 0:02:59.5]} 9. Re1 {[%clk 0:02:57.9]} 9... g5 {[%clk 0:02:57.6]} 10. Nf1
{[%clk 0:02:57.6]} 10... g4 {[%clk 0:02:48.6]} 11. N3d2 {[%clk 0:02:57]} 11...
h5 {[%clk 0:02:47.7]} 12. Ne3 {[%clk 0:02:53]} 12... h4 {[%clk 0:02:37.7]} 13.
g3 {[%clk 0:02:53.1]} 13... Be6 {[%clk 0:02:28.1]} 14. Ndf1 {[%clk 0:02:49.7]}
14... Qe7 {[%clk 0:02:16.5]} 15. Bxe6 {[%clk 0:02:42.3]} 15... fxe6 {[%clk
0:02:13.9]} 16. Nxg4 {[%clk 0:02:40.1]} 16... Nxg4 {[%clk 0:02:13]} 17. Qxg4
{[%clk 0:02:41]} 17... O-O-O {[%clk 0:02:13]} 18. Be3 {[%clk 0:02:36.5]} 18...
Rdg8 {[%clk 0:02:10.4]} 19. Qf3 {[%clk 0:02:36.5]} 19... hxg3 {[%clk 0:02:01.5]}
20. fxg3 {[%clk 0:02:35.7]} 20... Bxe3+ {[%clk 0:01:52.8]} 21. Qxe3 {[%clk
0:02:33.9]} 21... Qh7 {[%clk 0:01:48.7]} 22. Qd2 {[%clk 0:02:33]} 22... Rg4
{[%clk 0:01:41.3]} 23. Re2 {[%clk 0:02:30.3]} 23... Ne7 {[%clk 0:01:36.8]} 24.
Rf2 {[%clk 0:02:23.3]} 24... Ng6 {[%clk 0:01:34.1]} 25. Qe2 {[%clk 0:02:21.9]}
25... Qh3 {[%clk 0:01:31.5]} 26. Kh1 {[%clk 0:02:03.2]} 26... Rg5 {[%clk
0:01:07.3]} 27. Qe3 {[%clk 0:01:53.8]} 27... Qg4 {[%clk 0:00:41.2]} 28. Qf3
{[%clk 0:01:41.3]} 28... Qh3 {[%clk 0:00:38.8]} 29. Qf6 {[%clk 0:01:28.6]} 29...
Qg4 {[%clk 0:00:08.5]} 30. Ne3 {[%clk 0:01:10.5]} 30... Qxg3 {[%clk 0:00:05.4]}
31. Rg2 {[%clk 0:01:10.9]} 31... Rxh2+ {[%clk 0:00:01.7]} 32. Rxh2 {[%clk
0:01:09.8]} 32... Qxe3 {[%clk 0:00:01.7]} 33. Rf1 {[%clk 0:00:34.4]} 33... Kb8
{[%clk 0:00:02.4]} 34. Rg2 {[%clk 0:00:24.1]} 34... Rh5+ {[%clk 0:00:01.9]} 35.
Rh2 {[%clk 0:00:24.4]} 1-0

[Event "*** SCC Grand Prix: Titled Tuesday Blitz"]
[Site "Chess.com"]
[Date "2020.08.04"]
[Round "8"]
[White "ahachess"]
[Black "Eternauta2400"]
[Result "0-1"]
[WhiteElo "2295"]
[BlackElo "2536"]
[TimeControl "180+1"]
[EndTime "15:17:25 PDT"]
[Termination "Eternauta2400 won on time"]

1. d4 {[%clk 0:03:00.3]} 1... Nf6 {[%clk 0:02:58.9]} 2. c4 {[%clk 0:02:59.9]}
2... e6 {[%clk 0:02:58.9]} 3. Nc3 {[%clk 0:02:57.6]} 3... Bb4 {[%clk 0:02:58.6]}
4. Qc2 {[%clk 0:02:55.5]} 4... O-O {[%clk 0:02:58.1]} 5. a3 {[%clk 0:02:48.9]}
5... Bxc3+ {[%clk 0:02:57.5]} 6. Qxc3 {[%clk 0:02:49.8]} 6... d6 {[%clk
0:02:58]} 7. Bg5 {[%clk 0:02:42.4]} 7... Nbd7 {[%clk 0:02:57.5]} 8. e3 {[%clk
0:02:42]} 8... b6 {[%clk 0:02:55.5]} 9. Qc2 {[%clk 0:02:40.7]} 9... Bb7 {[%clk
0:02:55.2]} 10. Ne2 {[%clk 0:02:37.4]} 10... h6 {[%clk 0:02:54.4]} 11. Bh4
{[%clk 0:02:37]} 11... Rc8 {[%clk 0:02:43.5]} 12. Nc3 {[%clk 0:02:34.7]} 12...
c5 {[%clk 0:02:43.6]} 13. Rd1 {[%clk 0:02:31.7]} 13... cxd4 {[%clk 0:02:39.5]}
14. Rxd4 {[%clk 0:02:31.5]} 14... Ne5 {[%clk 0:02:37.3]} 15. Bg3 {[%clk
0:02:18.5]} 15... Qe7 {[%clk 0:02:33.4]} 16. f3 {[%clk 0:01:53.4]} 16... Rfd8
{[%clk 0:02:26.7]} 17. Be2 {[%clk 0:01:52.2]} 17... Ng6 {[%clk 0:02:21.3]} 18.
O-O {[%clk 0:01:47.7]} 18... d5 {[%clk 0:02:20.9]} 19. Rfd1 {[%clk 0:01:43.8]}
19... dxc4 {[%clk 0:02:08.5]} 20. Rxd8+ {[%clk 0:01:43.3]} 20... Rxd8 {[%clk
0:02:08.2]} 21. Bxc4 {[%clk 0:01:36.7]} 21... Rxd1+ {[%clk 0:02:02]} 22. Qxd1
{[%clk 0:01:25.1]} 22... Qc5 {[%clk 0:02:00.7]} 23. Qd3 {[%clk 0:01:20.7]} 23...
Ne5 {[%clk 0:01:56.4]} 24. Bxe5 {[%clk 0:01:19.7]} 24... Qxe5 {[%clk 0:01:57.3]}
25. Qd8+ {[%clk 0:00:33.4]} 25... Kh7 {[%clk 0:01:56.4]} 26. Qd3+ {[%clk
0:00:27]} 26... g6 {[%clk 0:01:56]} 27. h3 {[%clk 0:00:24.8]} 27... Kg7 {[%clk
0:01:55.2]} 28. Kf2 {[%clk 0:00:19.7]} 28... Nh5 {[%clk 0:01:45.8]} 29. Qd7
{[%clk 0:00:16]} 29... Qg3+ {[%clk 0:01:42.2]} 30. Kf1 {[%clk 0:00:15.9]} 30...
Bxf3 {[%clk 0:01:39.7]} 31. gxf3 {[%clk 0:00:14.1]} 31... Qxf3+ {[%clk
0:01:40.2]} 32. Ke1 {[%clk 0:00:13.1]} 32... Qxe3+ {[%clk 0:01:40.2]} 33. Ne2
{[%clk 0:00:10.6]} 33... a5 {[%clk 0:01:33.2]} 34. Qd4+ {[%clk 0:00:10.3]} 34...
Qxd4 {[%clk 0:01:32.5]} 35. Nxd4 {[%clk 0:00:11.2]} 35... Nf4 {[%clk 0:01:32.8]}
36. Bf1 {[%clk 0:00:09]} 36... Kf6 {[%clk 0:01:32.6]} 37. Kf2 {[%clk 0:00:08.5]}
37... Ke5 {[%clk 0:01:31.4]} 38. Nf3+ {[%clk 0:00:07.3]} 38... Kd5 {[%clk
0:01:30.8]} 39. Ke3 {[%clk 0:00:07.2]} 39... g5 {[%clk 0:01:29.7]} 40. h4 {[%clk
0:00:07]} 40... f6 {[%clk 0:01:27.7]} 41. hxg5 {[%clk 0:00:07.3]} 41... hxg5
{[%clk 0:01:28.6]} 42. Nd2 {[%clk 0:00:05.7]} 42... Ng6 {[%clk 0:01:16.5]} 43.
Bc4+ {[%clk 0:00:04.4]} 43... Kd6 {[%clk 0:01:13]} 44. Ne4+ {[%clk 0:00:03.3]}
44... Ke5 {[%clk 0:01:11.7]} 45. Nd2 {[%clk 0:00:02.4]} 45... Ne7 {[%clk
0:01:08.7]} 46. Nf3+ {[%clk 0:00:01.7]} 46... Kd6 {[%clk 0:01:08.3]} 0-1

[Event "*** SCC Grand Prix: Titled Tuesday Blitz"]
[Site "Chess.com"]
[Date "2020.08.04"]
[Round "8"]
[White "Batsai"]
[Black "KatarinaOstojic"]
[Result "1-0"]
[WhiteElo "2344"]
[BlackElo "2214"]
[TimeControl "180+1"]
[EndTime "15:17:26 PDT"]
[Termination "Batsai won by resignation"]

1. d4 {[%clk 0:02:58.9]} 1... f5 {[%clk 0:02:58.4]} 2. Bg5 {[%clk 0:02:57.7]}
2... g6 {[%clk 0:02:57.6]} 3. Nd2 {[%clk 0:02:52.8]} 3... Bg7 {[%clk 0:02:57.6]}
4. e4 {[%clk 0:02:51.7]} 4... d6 {[%clk 0:02:54]} 5. Ngf3 {[%clk 0:02:35.3]}
5... Nc6 {[%clk 0:02:49.9]} 6. c3 {[%clk 0:02:31.2]} 6... Nf6 {[%clk 0:02:43.2]}
7. exf5 {[%clk 0:02:11.1]} 7... Bxf5 {[%clk 0:02:41.4]} 8. Bc4 {[%clk
0:01:58.2]} 8... d5 {[%clk 0:02:35.9]} 9. Bb5 {[%clk 0:01:55.1]} 9... Bd7 {[%clk
0:02:35.7]} 10. O-O {[%clk 0:01:52.1]} 10... O-O {[%clk 0:02:35.5]} 11. Re1
{[%clk 0:01:34.4]} 11... a6 {[%clk 0:02:28.1]} 12. Ba4 {[%clk 0:00:58.9]} 12...
h6 {[%clk 0:02:20.5]} 13. Bh4 {[%clk 0:00:57.7]} 13... g5 {[%clk 0:01:43.1]} 14.
Bg3 {[%clk 0:00:55.4]} 14... Qe8 {[%clk 0:01:19.2]} 15. Bxc6 {[%clk 0:00:51.6]}
15... Bxc6 {[%clk 0:01:18.9]} 16. Bxc7 {[%clk 0:00:43.2]} 16... Ne4 {[%clk
0:01:17.7]} 17. Be5 {[%clk 0:00:40.2]} 17... Qh5 {[%clk 0:01:13.4]} 18. Bxg7
{[%clk 0:00:37]} 18... Kxg7 {[%clk 0:01:12.7]} 19. Nxe4 {[%clk 0:00:32.1]} 19...
dxe4 {[%clk 0:01:13.6]} 20. Ne5 {[%clk 0:00:33]} 20... Qh4 {[%clk 0:01:10.2]}
21. Qe2 {[%clk 0:00:26.2]} 21... Rad8 {[%clk 0:00:57.6]} 22. g3 {[%clk
0:00:24.2]} 22... Qh3 {[%clk 0:00:56]} 23. Nxc6 {[%clk 0:00:24.1]} 23... bxc6
{[%clk 0:00:55.7]} 24. Qxe4 {[%clk 0:00:24.4]} 24... Rf7 {[%clk 0:00:54.1]} 25.
Qxc6 {[%clk 0:00:17.1]} 25... Rxf2 {[%clk 0:00:24.5]} 26. Rxe7+ {[%clk
0:00:14.7]} 26... Kf8 {[%clk 0:00:19.1]} 27. Kxf2 {[%clk 0:00:14.2]} 27... Qxh2+
{[%clk 0:00:18.4]} 28. Qg2 {[%clk 0:00:13.5]} 28... Qxg2+ {[%clk 0:00:18.3]} 29.
Kxg2 {[%clk 0:00:14.4]} 29... Kxe7 {[%clk 0:00:18.7]} 30. Rh1 {[%clk 0:00:11.6]}
30... Rd6 {[%clk 0:00:18.4]} 31. Kf3 {[%clk 0:00:10.7]} 31... Re6 {[%clk
0:00:18.4]} 32. Rh2 {[%clk 0:00:09]} 32... Kd6 {[%clk 0:00:16.9]} 33. Re2 {[%clk
0:00:09.4]} 33... Rg6 {[%clk 0:00:16.2]} 34. Kg4 {[%clk 0:00:09.4]} 1-0

[Event "*** SCC Grand Prix: Titled Tuesday Blitz"]
[Site "Chess.com"]
[Date "2020.08.04"]
[Round "8"]
[White "KarstenHansch"]
[Black "VladaSviridova"]
[Result "1-0"]
[WhiteElo "2411"]
[BlackElo "2190"]
[TimeControl "180+1"]
[EndTime "15:17:33 PDT"]
[Termination "KarstenHansch won by resignation"]

1. e4 {[%clk 0:02:49.8]} 1... e6 {[%clk 0:02:59.7]} 2. d4 {[%clk 0:02:49.1]}
2... d5 {[%clk 0:02:59.8]} 3. exd5 {[%clk 0:02:50]} 3... exd5 {[%clk 0:02:59.6]}
4. Nf3 {[%clk 0:02:50.4]} 4... Bd6 {[%clk 0:02:59]} 5. c4 {[%clk 0:02:49.2]}
5... Nf6 {[%clk 0:02:58.9]} 6. Nc3 {[%clk 0:02:49.1]} 6... dxc4 {[%clk
0:02:58.4]} 7. Bxc4 {[%clk 0:02:48.1]} 7... O-O {[%clk 0:02:58.6]} 8. O-O {[%clk
0:02:48.2]} 8... Nc6 {[%clk 0:02:58.7]} 9. h3 {[%clk 0:02:46.9]} 9... h6 {[%clk
0:02:58.7]} 10. Qc2 {[%clk 0:02:44]} 10... Nb4 {[%clk 0:02:50.4]} 11. Qb1 {[%clk
0:02:43.4]} 11... Be6 {[%clk 0:02:25.7]} 12. Bxe6 {[%clk 0:02:41.9]} 12... fxe6
{[%clk 0:02:26]} 13. Re1 {[%clk 0:02:42.1]} 13... Qd7 {[%clk 0:02:26.1]} 14. a3
{[%clk 0:02:33]} 14... Nbd5 {[%clk 0:02:25.5]} 15. Ne5 {[%clk 0:02:30.5]} 15...
Bxe5 {[%clk 0:02:21.3]} 16. dxe5 {[%clk 0:02:31.4]} 16... Nxc3 {[%clk
0:02:13.6]} 17. bxc3 {[%clk 0:02:32.3]} 17... Nd5 {[%clk 0:02:13.6]} 18. c4
{[%clk 0:02:31]} 18... Nf4 {[%clk 0:01:53.7]} 19. Qxb7 {[%clk 0:01:47]} 19...
Qd4 {[%clk 0:01:40.9]} 20. Be3 {[%clk 0:01:34.1]} 20... Qxc4 {[%clk 0:01:28]}
21. Rac1 {[%clk 0:01:28.2]} 21... Qd5 {[%clk 0:01:01.9]} 22. Rxc7 {[%clk
0:01:23.1]} 22... Qxb7 {[%clk 0:00:56.1]} 23. Rxb7 {[%clk 0:01:22.6]} 23... Nd5
{[%clk 0:00:55.7]} 24. Rxa7 {[%clk 0:01:13.6]} 24... Rxa7 {[%clk 0:00:52.4]} 25.
Bxa7 {[%clk 0:01:14.5]} 25... Rc8 {[%clk 0:00:47.1]} 26. Ra1 {[%clk 0:00:58.1]}
26... Rc7 {[%clk 0:00:44.2]} 27. Bb8 {[%clk 0:00:55.9]} 27... Rb7 {[%clk
0:00:42.5]} 28. Bd6 {[%clk 0:00:55.9]} 28... Nc3 {[%clk 0:00:32.7]} 29. a4
{[%clk 0:00:51.3]} 29... Ne2+ {[%clk 0:00:29]} 30. Kf1 {[%clk 0:00:47.9]} 30...
Nd4 {[%clk 0:00:27.1]} 31. a5 {[%clk 0:00:48.1]} 31... Nb3 {[%clk 0:00:21]} 32.
a6 {[%clk 0:00:39.2]} 32... Ra7 {[%clk 0:00:19.2]} 33. Ra3 {[%clk 0:00:37.8]}
33... Nd2+ {[%clk 0:00:18.8]} 34. Ke2 {[%clk 0:00:37.6]} 34... Nc4 {[%clk
0:00:19]} 35. Ra4 {[%clk 0:00:29.2]} 35... Nxd6 {[%clk 0:00:18.8]} 36. exd6
{[%clk 0:00:28.7]} 36... Kf7 {[%clk 0:00:19.1]} 37. Ke3 {[%clk 0:00:24.4]} 37...
Ke8 {[%clk 0:00:19.3]} 38. Ke4 {[%clk 0:00:24.8]} 38... Kd7 {[%clk 0:00:19.2]}
39. Ke5 {[%clk 0:00:25.1]} 39... Ra8 {[%clk 0:00:16.7]} 40. a7 {[%clk
0:00:24.8]} 40... g6 {[%clk 0:00:16.6]} 41. Ra6 {[%clk 0:00:23.7]} 41... h5
{[%clk 0:00:15.7]} 42. h4 {[%clk 0:00:23.9]} 42... Rf8 {[%clk 0:00:14.5]} 43.
a8=Q {[%clk 0:00:23.3]} 43... Rf5+ {[%clk 0:00:14.4]} 44. Ke4 {[%clk 0:00:22.2]}
1-0